[Event "Titled Tuesday Blitz November 29 Early 2022"]
[White "Shapiro, Daniel"]
[Black "Omariev, Maksim"]
[WhiteFideId "2001780"]
[BlackFideId "4193423"]
[WhiteElo "2315"]
[BlackElo "2431"]
[Result "1-0"]
[Round "04"]
[TimeControl "180+1"]
[Date "2022.11.30"]
[WhiteClock "0:00:31"]
[BlackClock "0:00:04"]

1. d4 {[%clk 0:03:00]}  d5 {[%clk 0:02:59]} 2. c4 {[%clk 0:03:00]}  e6 {[%clk 0:03:00]} 3. Nf3 {[%clk 0:03:00]}  Nf6 {[%clk 0:03:00]} 4. g3 {[%clk 0:03:00]}  Be7 {[%clk 0:03:00]} 5. Bg2 {[%clk 0:03:00]}  O-O {[%clk 0:03:01]} 6. O-O {[%clk 0:03:00]}  dxc4 {[%clk 0:03:02]} 7. Ne5 {[%clk 0:03:00]}  Nc6 {[%clk 0:03:02]} 8. Bxc6 {[%clk 0:03:00]}  bxc6 {[%clk 0:03:03]} 9. Nxc6 {[%clk 0:03:00]}  Qd6 {[%clk 0:02:59]} 10. Nxe7+ {[%clk 0:03:01]}  Qxe7 {[%clk 0:03:00]} 11. Qa4 {[%clk 0:03:00]}  c5 {[%clk 0:02:38]} 12. Qxc4 {[%clk 0:02:58]}  cxd4 {[%clk 0:02:34]} 13. Qxd4 {[%clk 0:02:59]}  Rd8 {[%clk 0:02:32]} 14. Qh4 {[%clk 0:02:58]}  h6 {[%clk 0:02:26]} 15. Nc3 {[%clk 0:02:57]}  Bb7 {[%clk 0:02:26]} 16. Be3 {[%clk 0:02:45]}  e5 {[%clk 0:02:01]} 17. Rfd1 {[%clk 0:02:27]}  Qe6 {[%clk 0:02:01]} 18. Rac1 {[%clk 0:02:01]}  Rxd1+ {[%clk 0:01:57]} 19. Rxd1 {[%clk 0:01:59]}  Qc6 {[%clk 0:01:58]} 20. f3 {[%clk 0:01:56]}  a5 {[%clk 0:01:53]} 21. Qa4 {[%clk 0:01:50]}  Qe6 {[%clk 0:01:49]} 22. Qb3 {[%clk 0:01:42]}  Qxb3 {[%clk 0:00:58]} 23. axb3 {[%clk 0:01:43]}  Bc6 {[%clk 0:00:58]} 24. Rd6 {[%clk 0:01:37]}  Bd7 {[%clk 0:00:49]} 25. Na4 {[%clk 0:01:22]}  Rb8 {[%clk 0:00:30]} 26. Nb6 {[%clk 0:01:15]}  Be6 {[%clk 0:00:29]} 27. Bd2 {[%clk 0:01:06]}  Ne8 {[%clk 0:00:19]} 28. Rc6 {[%clk 0:01:05]}  Bxb3 {[%clk 0:00:09]} 29. Bxa5 {[%clk 0:01:05]}  f5 {[%clk 0:00:05]} 30. Rc5 {[%clk 0:00:59]}  e4 {[%clk 0:00:04]} 31. Rxf5 {[%clk 0:00:57]}  Bd1 {[%clk 0:00:04]} 32. Kf2 {[%clk 0:00:56]}  exf3 {[%clk 0:00:03]} 33. exf3 {[%clk 0:00:55]}  Nd6 {[%clk 0:00:03]} 34. Rd5 {[%clk 0:00:53]}  Nb7 {[%clk 0:00:04]} 35. Bc3 {[%clk 0:00:48]}  Bb3 {[%clk 0:00:03]} 36. Rd7 {[%clk 0:00:47]}  Bf7 {[%clk 0:00:04]} 37. Nd5 {[%clk 0:00:40]}  Nc5 {[%clk 0:00:04]} 38. Rc7 {[%clk 0:00:35]}  Nd3+ {[%clk 0:00:04]} 39. Ke3 {[%clk 0:00:34]}  Bxd5 {[%clk 0:00:04]} 40. Rxg7+ {[%clk 0:00:33]}  Kf8 {[%clk 0:00:04]} 41. Kxd3 {[%clk 0:00:33]}  Bxf3 {[%clk 0:00:04]} 42. Rh7 {[%clk 0:00:31]}  h5 {[%clk 0:00:04]} 43. Rh8+ {[%clk 0:00:31]} 1-0


[Site "https://www.chess.com"]

[Event "Titled Tuesday Blitz November 29 Early 2022"]
[White "Sharifov, Mekhriddin"]
[Black "Mihailidis, Anastasios"]
[WhiteFideId "14701545"]
[BlackFideId "4205588"]
[WhiteElo "2109"]
[BlackElo "2312"]
[Result "1-0"]
[Round "04"]
[TimeControl "180+1"]
[Date "2022.11.30"]
[WhiteClock "0:00:08"]
[BlackClock "0:00:01"]

1. e4 {[%clk 0:03:00]}  c5 {[%clk 0:02:55]} 2. Nf3 {[%clk 0:03:00]}  d6 {[%clk 0:02:55]} 3. d4 {[%clk 0:03:00]}  cxd4 {[%clk 0:02:56]} 4. Nxd4 {[%clk 0:03:01]}  Nf6 {[%clk 0:02:56]} 5. Nc3 {[%clk 0:03:02]}  g6 {[%clk 0:02:56]} 6. Be3 {[%clk 0:03:02]}  Bg7 {[%clk 0:02:57]} 7. f3 {[%clk 0:03:03]}  O-O {[%clk 0:02:57]} 8. Bc4 {[%clk 0:03:03]}  Nc6 {[%clk 0:02:58]} 9. Qd2 {[%clk 0:03:04]}  Nxd4 {[%clk 0:02:58]} 10. Bxd4 {[%clk 0:03:04]}  Be6 {[%clk 0:02:59]} 11. Bxe6 {[%clk 0:03:03]}  fxe6 {[%clk 0:02:59]} 12. O-O {[%clk 0:03:02]}  Qa5 {[%clk 0:02:59]} 13. a3 {[%clk 0:03:01]}  Rac8 {[%clk 0:02:59]} 14. Qf2 {[%clk 0:02:53]}  Nd7 {[%clk 0:02:41]} 15. Rad1 {[%clk 0:02:44]}  Bxd4 {[%clk 0:02:40]} 16. Qxd4 {[%clk 0:02:45]}  Qc5 {[%clk 0:02:39]} 17. Qxc5 {[%clk 0:02:45]}  Nxc5 {[%clk 0:02:39]} 18. Kf2 {[%clk 0:02:43]}  Rfd8 {[%clk 0:02:28]} 19. Rd2 {[%clk 0:02:36]}  Kf7 {[%clk 0:02:21]} 20. h4 {[%clk 0:02:36]}  e5 {[%clk 0:02:20]} 21. Rfd1 {[%clk 0:02:31]}  Ke6 {[%clk 0:02:16]} 22. Nd5 {[%clk 0:02:30]}  Na4 {[%clk 0:01:57]} 23. c3 {[%clk 0:02:21]}  Nc5 {[%clk 0:01:54]} 24. Ke2 {[%clk 0:02:20]}  Nb3 {[%clk 0:01:51]} 25. Rd3 {[%clk 0:02:19]}  Nc5 {[%clk 0:01:51]} 26. R3d2 {[%clk 0:02:19]}  Nb3 {[%clk 0:01:51]} 27. Rd3 {[%clk 0:02:19]}  Nc5 {[%clk 0:01:51]} 28. Re3 {[%clk 0:02:20]}  Na4 {[%clk 0:01:47]} 29. Rd2 {[%clk 0:02:16]}  Nc5 {[%clk 0:01:47]} 30. Kd1 {[%clk 0:02:08]}  Nb3 {[%clk 0:01:45]} 31. Rf2 {[%clk 0:02:07]}  Na5 {[%clk 0:01:44]} 32. Rd3 {[%clk 0:02:04]}  Nb3 {[%clk 0:01:39]} 33. Kc2 {[%clk 0:02:00]}  Na1+ {[%clk 0:01:32]} 34. Kb1 {[%clk 0:01:59]}  Nb3 {[%clk 0:01:32]} 35. Rd1 {[%clk 0:01:56]}  a5 {[%clk 0:01:27]} 36. Ka2 {[%clk 0:01:51]}  Nc5 {[%clk 0:01:25]} 37. h5 {[%clk 0:01:45]}  g5 {[%clk 0:01:22]} 38. Ne3 {[%clk 0:01:43]}  b5 {[%clk 0:01:03]} 39. Nf5 {[%clk 0:01:31]}  Na6 {[%clk 0:00:57]} 40. Rd5 {[%clk 0:01:26]}  Nc7 {[%clk 0:00:53]} 41. Rd3 {[%clk 0:01:21]}  Na6 {[%clk 0:00:53]} 42. b4 {[%clk 0:01:18]}  a4 {[%clk 0:00:46]} 43. Ne3 {[%clk 0:01:06]}  Nc7 {[%clk 0:00:39]} 44. c4 {[%clk 0:01:00]}  bxc4 {[%clk 0:00:34]} 45. Nxc4 {[%clk 0:01:01]}  Nb5 {[%clk 0:00:34]} 46. Nb6 {[%clk 0:00:56]}  Rc3 {[%clk 0:00:34]} 47. Rfd2 {[%clk 0:00:48]}  Rxd3 {[%clk 0:00:20]} 48. Rxd3 {[%clk 0:00:49]}  Nd4 {[%clk 0:00:13]} 49. Nxa4 {[%clk 0:00:47]}  Rc8 {[%clk 0:00:14]} 50. Rd2 {[%clk 0:00:43]}  Rc1 {[%clk 0:00:14]} 51. Nb2 {[%clk 0:00:36]}  Rh1 {[%clk 0:00:14]} 52. a4 {[%clk 0:00:36]}  Rxh5 {[%clk 0:00:14]} 53. a5 {[%clk 0:00:32]}  Rh1 {[%clk 0:00:09]} 54. a6 {[%clk 0:00:28]}  Rc1 {[%clk 0:00:10]} 55. Rd3 {[%clk 0:00:15]}  Rc7 {[%clk 0:00:10]} 56. Ra3 {[%clk 0:00:15]}  Nc2 {[%clk 0:00:10]} 57. Ra4 {[%clk 0:00:15]}  Ra7 {[%clk 0:00:09]} 58. b5 {[%clk 0:00:15]}  Kd7 {[%clk 0:00:04]} 59. b6 {[%clk 0:00:15]}  Rxa6 {[%clk 0:00:04]} 60. Rxa6 {[%clk 0:00:08]}  Nb4+ {[%clk 0:00:04]} 61. Kb3 {[%clk 0:00:08]}  Nxa6 {[%clk 0:00:05]} 62. Ka4 {[%clk 0:00:04]}  Kc6 {[%clk 0:00:05]} 63. Ka5 {[%clk 0:00:05]}  Nc5 {[%clk 0:00:04]} 64. Nc4 {[%clk 0:00:03]}  Kb7 {[%clk 0:00:05]} 65. Kb5 {[%clk 0:00:03]}  Nb3 {[%clk 0:00:05]} 66. Ne3 {[%clk 0:00:03]}  Nd4+ {[%clk 0:00:05]} 67. Ka5 {[%clk 0:00:03]}  Nb3+ {[%clk 0:00:02]} 68. Kb4 {[%clk 0:00:04]}  Nd4 {[%clk 0:00:01]} 69. Nc4 {[%clk 0:00:04]}  Kc6 {[%clk 0:00:01]} 70. Ka5 {[%clk 0:00:03]}  Nb3+ {[%clk 0:00:02]} 71. Kb4 {[%clk 0:00:03]}  Nc5 {[%clk 0:00:03]} 72. Ne3 {[%clk 0:00:03]}  Na6+ {[%clk 0:00:03]} 73. Kc4 {[%clk 0:00:04]}  Nc5 {[%clk 0:00:04]} 74. Nd5 {[%clk 0:00:04]}  e6 {[%clk 0:00:04]} 75. Nc7 {[%clk 0:00:04]}  Kxb6 {[%clk 0:00:03]} 76. Ne8 {[%clk 0:00:05]}  Kc6 {[%clk 0:00:03]} 77. Nf6 {[%clk 0:00:05]}  h6 {[%clk 0:00:04]} 78. Ng8 {[%clk 0:00:06]}  h5 {[%clk 0:00:03]} 79. Nf6 {[%clk 0:00:06]}  h4 {[%clk 0:00:04]} 80. Nh7 {[%clk 0:00:07]}  g4 {[%clk 0:00:01]} 81. fxg4 {[%clk 0:00:08]}  Nxe4 {[%clk 0:00:01]} 82. g5 {[%clk 0:00:08]} 1-0


[Site "https://www.chess.com"]

[Event "Titled Tuesday Blitz November 29 Early 2022"]
[White "Shimanov, Aleksandr"]
[Black "Oro, Faustino"]
[WhiteFideId "4198603"]
[BlackFideId "20000197"]
[WhiteElo "2605"]
[BlackElo "2066"]
[Result "1-0"]
[Round "04"]
[TimeControl "180+1"]
[Date "2022.11.30"]
[WhiteClock "0:01:17"]
[BlackClock "0:01:14"]

1. c4 {[%clk 0:03:00]}  Nf6 {[%clk 0:02:59]} 2. g3 {[%clk 0:02:58]}  e5 {[%clk 0:02:58]} 3. Bg2 {[%clk 0:02:58]}  c6 {[%clk 0:02:47]} 4. Nf3 {[%clk 0:02:57]}  e4 {[%clk 0:02:43]} 5. Nd4 {[%clk 0:02:57]}  d5 {[%clk 0:02:43]} 6. cxd5 {[%clk 0:02:55]}  Qxd5 {[%clk 0:02:44]} 7. e3 {[%clk 0:02:54]}  Bc5 {[%clk 0:02:43]} 8. Nc3 {[%clk 0:02:52]}  Qe5 {[%clk 0:02:36]} 9. d3 {[%clk 0:02:50]}  exd3 {[%clk 0:02:28]} 10. Qxd3 {[%clk 0:02:50]}  O-O {[%clk 0:02:26]} 11. O-O {[%clk 0:02:49]}  Bg4 {[%clk 0:02:20]} 12. h3 {[%clk 0:02:35]}  Bh5 {[%clk 0:02:19]} 13. f4 {[%clk 0:02:30]}  Qc7 {[%clk 0:02:02]} 14. g4 {[%clk 0:02:30]}  Bxg4 {[%clk 0:01:42]} 15. hxg4 {[%clk 0:02:28]}  Nxg4 {[%clk 0:01:43]} 16. Qf5 {[%clk 0:02:25]}  Bxd4 {[%clk 0:01:40]} 17. exd4 {[%clk 0:02:22]}  Nf6 {[%clk 0:01:40]} 18. Be3 {[%clk 0:02:21]}  Nbd7 {[%clk 0:01:40]} 19. Rad1 {[%clk 0:02:20]}  Nb6 {[%clk 0:01:39]} 20. Bf2 {[%clk 0:02:15]}  Rad8 {[%clk 0:01:38]} 21. Rfe1 {[%clk 0:02:14]}  Nfd5 {[%clk 0:01:37]} 22. Nxd5 {[%clk 0:01:38]}  Nxd5 {[%clk 0:01:38]} 23. Bxd5 {[%clk 0:01:38]}  Rxd5 {[%clk 0:01:36]} 24. Re5 {[%clk 0:01:38]}  Rd6 {[%clk 0:01:36]} 25. Rde1 {[%clk 0:01:36]}  Rf6 {[%clk 0:01:36]} 26. Qe4 {[%clk 0:01:36]}  Qd6 {[%clk 0:01:34]} 27. b3 {[%clk 0:01:32]}  h6 {[%clk 0:01:33]} 28. f5 {[%clk 0:01:32]}  g6 {[%clk 0:01:20]} 29. Re3 {[%clk 0:01:23]}  g5 {[%clk 0:01:15]} 30. Bg3 {[%clk 0:01:21]}  Qb4 {[%clk 0:01:14]} 31. Re8 {[%clk 0:01:17]} 1-0


[Site "https://www.chess.com"]

[Event "Titled Tuesday Blitz November 29 Early 2022"]
[White "Stankovic, Ivan G"]
[Black "Vasques, Antonio Pedro Freixial"]
[WhiteFideId "902837"]
[BlackFideId "1908332"]
[WhiteElo "2226"]
[BlackElo "2243"]
[Result "1-0"]
[Round "04"]
[TimeControl "180+1"]
[Date "2022.11.30"]
[WhiteClock "0:00:05"]
[BlackClock "0:00:02"]

1. e4 {[%clk 0:03:00]}  c5 {[%clk 0:02:58]} 2. c4 {[%clk 0:03:00]}  Nc6 {[%clk 0:02:58]} 3. Nc3 {[%clk 0:03:00]}  g6 {[%clk 0:02:59]} 4. g3 {[%clk 0:02:56]}  Bg7 {[%clk 0:02:59]} 5. Bg2 {[%clk 0:02:53]}  Nf6 {[%clk 0:02:59]} 6. Nge2 {[%clk 0:02:53]}  O-O {[%clk 0:03:00]} 7. d3 {[%clk 0:02:52]}  Ne8 {[%clk 0:03:00]} 8. Be3 {[%clk 0:02:50]}  d6 {[%clk 0:02:59]} 9. d4 {[%clk 0:02:51]}  cxd4 {[%clk 0:02:52]} 10. Nxd4 {[%clk 0:02:51]}  Bd7 {[%clk 0:02:47]} 11. O-O {[%clk 0:02:50]}  Nc7 {[%clk 0:02:47]} 12. b3 {[%clk 0:02:49]}  Nxd4 {[%clk 0:02:45]} 13. Bxd4 {[%clk 0:02:48]}  Bxd4 {[%clk 0:02:45]} 14. Qxd4 {[%clk 0:02:49]}  b5 {[%clk 0:02:44]} 15. e5 {[%clk 0:02:20]}  dxe5 {[%clk 0:02:28]} 16. Qxe5 {[%clk 0:02:16]}  Rb8 {[%clk 0:02:28]} 17. Nd5 {[%clk 0:02:09]}  Nxd5 {[%clk 0:02:25]} 18. cxd5 {[%clk 0:02:09]}  Re8 {[%clk 0:02:23]} 19. Rad1 {[%clk 0:02:07]}  Qb6 {[%clk 0:02:21]} 20. Rfe1 {[%clk 0:02:05]}  Qd6 {[%clk 0:02:20]} 21. h4 {[%clk 0:01:57]}  h5 {[%clk 0:02:18]} 22. Qe3 {[%clk 0:01:54]}  a5 {[%clk 0:02:13]} 23. Rc1 {[%clk 0:01:54]}  a4 {[%clk 0:01:58]} 24. Qa7 {[%clk 0:01:47]}  Ra8 {[%clk 0:01:43]} 25. Qe3 {[%clk 0:01:22]}  axb3 {[%clk 0:01:39]} 26. axb3 {[%clk 0:01:22]}  Ra2 {[%clk 0:01:37]} 27. Re2 {[%clk 0:01:15]}  Rxe2 {[%clk 0:01:30]} 28. Qxe2 {[%clk 0:01:16]}  Ra8 {[%clk 0:01:30]} 29. Re1 {[%clk 0:01:13]}  Kf8 {[%clk 0:01:24]} 30. Qe3 {[%clk 0:01:14]}  Ra2 {[%clk 0:01:10]} 31. Qh6+ {[%clk 0:01:05]}  Kg8 {[%clk 0:01:10]} 32. Qg5 {[%clk 0:01:05]}  Kf8 {[%clk 0:01:05]} 33. Qe3 {[%clk 0:00:57]}  Qa3 {[%clk 0:00:54]} 34. Qd4 {[%clk 0:00:50]}  Kg8 {[%clk 0:00:51]} 35. b4 {[%clk 0:00:43]}  e6 {[%clk 0:00:46]} 36. dxe6 {[%clk 0:00:40]}  Bxe6 {[%clk 0:00:47]} 37. Rxe6 {[%clk 0:00:39]}  fxe6 {[%clk 0:00:42]} 38. Qf6 {[%clk 0:00:39]}  Qb2 {[%clk 0:00:12]} 39. Qxe6+ {[%clk 0:00:35]}  Kg7 {[%clk 0:00:12]} 40. Qe7+ {[%clk 0:00:30]}  Kh8 {[%clk 0:00:12]} 41. Qf8+ {[%clk 0:00:28]}  Kh7 {[%clk 0:00:12]} 42. Bd5 {[%clk 0:00:28]}  Ra1+ {[%clk 0:00:09]} 43. Kg2 {[%clk 0:00:28]}  Qg7 {[%clk 0:00:10]} 44. Qc5 {[%clk 0:00:25]}  Qd7 {[%clk 0:00:05]} 45. Bc6 {[%clk 0:00:21]}  Qd1 {[%clk 0:00:03]} 46. Qe7+ {[%clk 0:00:14]}  Kh6 {[%clk 0:00:04]} 47. Qe3+ {[%clk 0:00:14]}  Kh7 {[%clk 0:00:04]} 48. Kh2 {[%clk 0:00:15]}  Qg1+ {[%clk 0:00:04]} 49. Kh3 {[%clk 0:00:15]}  Qf1+ {[%clk 0:00:04]} 50. Bg2 {[%clk 0:00:15]}  Qc4 {[%clk 0:00:05]} 51. Qe7+ {[%clk 0:00:15]}  Kh6 {[%clk 0:00:05]} 52. Qg5+ {[%clk 0:00:15]}  Kg7 {[%clk 0:00:05]} 53. Qe5+ {[%clk 0:00:15]}  Kh6 {[%clk 0:00:06]} 54. Be4 {[%clk 0:00:14]}  Re1 {[%clk 0:00:05]} 55. Qf4+ {[%clk 0:00:14]}  Kh7 {[%clk 0:00:05]} 56. f3 {[%clk 0:00:12]}  Qc8+ {[%clk 0:00:05]} 57. g4 {[%clk 0:00:12]}  hxg4+ {[%clk 0:00:05]} 58. fxg4 {[%clk 0:00:12]}  Qc3+ {[%clk 0:00:06]} 59. Bf3 {[%clk 0:00:11]}  Re3 {[%clk 0:00:06]} 60. Kg3 {[%clk 0:00:11]}  Qd3 {[%clk 0:00:06]} 61. Qf7+ {[%clk 0:00:11]}  Kh6 {[%clk 0:00:06]} 62. Qf8+ {[%clk 0:00:11]}  Kh7 {[%clk 0:00:06]} 63. Qf7+ {[%clk 0:00:12]}  Kh8 {[%clk 0:00:07]} 64. Qf8+ {[%clk 0:00:12]}  Kh7 {[%clk 0:00:07]} 65. Qf4 {[%clk 0:00:12]}  Qc3 {[%clk 0:00:07]} 66. h5 {[%clk 0:00:12]}  gxh5 {[%clk 0:00:07]} 67. gxh5 {[%clk 0:00:13]}  Rd3 {[%clk 0:00:06]} 68. Kh4 {[%clk 0:00:12]}  Qd4 {[%clk 0:00:05]} 69. Be4+ {[%clk 0:00:12]}  Kg8 {[%clk 0:00:04]} 70. Qg4+ {[%clk 0:00:12]}  Kf7 {[%clk 0:00:04]} 71. Bxd3 {[%clk 0:00:11]}  Qxd3 {[%clk 0:00:05]} 72. Qf4+ {[%clk 0:00:10]}  Ke6 {[%clk 0:00:05]} 73. Qg4+ {[%clk 0:00:08]}  Kd6 {[%clk 0:00:05]} 74. h6 {[%clk 0:00:07]}  Qh7 {[%clk 0:00:04]} 75. Qf4+ {[%clk 0:00:06]}  Kd5 {[%clk 0:00:04]} 76. Kh5 {[%clk 0:00:06]}  Qe7 {[%clk 0:00:02]} 77. Qg5+ {[%clk 0:00:05]}  Kc4 {[%clk 0:00:02]} 78. Qxe7 {[%clk 0:00:05]} 1-0


[Site "https://www.chess.com"]

[Event "Titled Tuesday Blitz November 29 Early 2022"]
[White "Szpar, Milosz"]
[Black "Jumabayev, Rinat"]
[WhiteFideId "1184989"]
[BlackFideId "13702661"]
[WhiteElo "2422"]
[BlackElo "2561"]
[Result "1-0"]
[Round "04"]
[TimeControl "180+1"]
[Date "2022.11.30"]
[WhiteClock "0:00:22"]
[BlackClock "0:00:01"]

1. e4 {[%clk 0:03:00]}  c6 {[%clk 0:02:57]} 2. Nf3 {[%clk 0:02:58]}  d5 {[%clk 0:02:58]} 3. d3 {[%clk 0:02:58]}  g6 {[%clk 0:02:54]} 4. Nc3 {[%clk 0:02:55]}  Bg7 {[%clk 0:02:54]} 5. d4 {[%clk 0:02:52]}  dxe4 {[%clk 0:02:31]} 6. Nxe4 {[%clk 0:02:52]}  Bg4 {[%clk 0:02:32]} 7. c3 {[%clk 0:02:51]}  Nd7 {[%clk 0:02:26]} 8. Bc4 {[%clk 0:02:50]}  Ngf6 {[%clk 0:01:33]} 9. Neg5 {[%clk 0:02:49]}  O-O {[%clk 0:01:30]} 10. h3 {[%clk 0:02:48]}  Bxf3 {[%clk 0:01:29]} 11. Nxf3 {[%clk 0:02:40]}  Qc7 {[%clk 0:01:27]} 12. O-O {[%clk 0:02:38]}  e5 {[%clk 0:01:18]} 13. dxe5 {[%clk 0:02:39]}  Nxe5 {[%clk 0:01:18]} 14. Bf4 {[%clk 0:02:40]}  Nh5 {[%clk 0:01:10]} 15. Bxe5 {[%clk 0:02:26]}  Bxe5 {[%clk 0:01:11]} 16. Nxe5 {[%clk 0:02:25]}  Qxe5 {[%clk 0:01:11]} 17. Re1 {[%clk 0:02:22]}  Qc5 {[%clk 0:01:02]} 18. Bb3 {[%clk 0:02:19]}  Rad8 {[%clk 0:00:55]} 19. Qf3 {[%clk 0:02:19]}  Kg7 {[%clk 0:00:47]} 20. Re2 {[%clk 0:02:19]}  Rd7 {[%clk 0:00:40]} 21. Rae1 {[%clk 0:02:19]}  a5 {[%clk 0:00:34]} 22. a3 {[%clk 0:02:16]}  Qb5 {[%clk 0:00:20]} 23. Ba2 {[%clk 0:02:12]}  Nf6 {[%clk 0:00:20]} 24. b4 {[%clk 0:01:39]}  axb4 {[%clk 0:00:21]} 25. axb4 {[%clk 0:01:39]}  Rd3 {[%clk 0:00:15]} 26. Qf4 {[%clk 0:01:39]}  Rxc3 {[%clk 0:00:13]} 27. Re7 {[%clk 0:01:18]}  Qf5 {[%clk 0:00:08]} 28. Qd4 {[%clk 0:01:12]}  Rc2 {[%clk 0:00:07]} 29. Bb1 {[%clk 0:01:07]}  Rd8 {[%clk 0:00:01]} 30. Bxc2 {[%clk 0:00:57]}  Rxd4 {[%clk 0:00:02]} 31. Bxf5 {[%clk 0:00:57]}  gxf5 {[%clk 0:00:03]} 32. Rxb7 {[%clk 0:00:57]}  Nd5 {[%clk 0:00:04]} 33. b5 {[%clk 0:00:52]}  cxb5 {[%clk 0:00:04]} 34. Rxb5 {[%clk 0:00:52]}  Kg6 {[%clk 0:00:05]} 35. Ra5 {[%clk 0:00:50]}  f6 {[%clk 0:00:04]} 36. Raa1 {[%clk 0:00:46]}  Nf4 {[%clk 0:00:04]} 37. Rad1 {[%clk 0:00:45]}  Rc4 {[%clk 0:00:05]} 38. Re3 {[%clk 0:00:44]}  h5 {[%clk 0:00:04]} 39. Rg3+ {[%clk 0:00:42]}  Kf7 {[%clk 0:00:04]} 40. Rf3 {[%clk 0:00:39]}  h4 {[%clk 0:00:04]} 41. Kh2 {[%clk 0:00:37]}  Kg6 {[%clk 0:00:04]} 42. Ra1 {[%clk 0:00:36]}  Ne6 {[%clk 0:00:05]} 43. Rfa3 {[%clk 0:00:34]}  Ng5 {[%clk 0:00:05]} 44. Ra4 {[%clk 0:00:33]}  Rc2 {[%clk 0:00:03]} 45. R1a2 {[%clk 0:00:34]}  Rxa2 {[%clk 0:00:03]} 46. Rxa2 {[%clk 0:00:34]}  Ne4 {[%clk 0:00:04]} 47. Kg1 {[%clk 0:00:33]}  Kg5 {[%clk 0:00:05]} 48. Kf1 {[%clk 0:00:32]}  Kg6 {[%clk 0:00:04]} 49. Ra8 {[%clk 0:00:32]}  Kg5 {[%clk 0:00:04]} 50. Rg8+ {[%clk 0:00:32]}  Kh5 {[%clk 0:00:04]} 51. Rh8+ {[%clk 0:00:31]}  Kg5 {[%clk 0:00:05]} 52. Ke2 {[%clk 0:00:30]}  Nc3+ {[%clk 0:00:04]} 53. Kd3 {[%clk 0:00:29]}  Ne4 {[%clk 0:00:04]} 54. Ke3 {[%clk 0:00:29]}  Nc3 {[%clk 0:00:01]} 55. f4+ {[%clk 0:00:28]}  Kg6 {[%clk 0:00:01]} 56. Rxh4 {[%clk 0:00:28]}  Nd5+ {[%clk 0:00:02]} 57. Kd4 {[%clk 0:00:28]}  Nb4 {[%clk 0:00:01]} 58. g4 {[%clk 0:00:27]}  Nc2+ {[%clk 0:00:02]} 59. Kd5 {[%clk 0:00:22]}  Ne3+ {[%clk 0:00:01]} 60. Ke6 {[%clk 0:00:22]} 1-0


[Site "https://www.chess.com"]

[Event "Titled Tuesday Blitz November 29 Early 2022"]
[White "Szyszylo, Rafal"]
[Black "Terzi, Alexei"]
[WhiteFideId "1109626"]
[BlackFideId "13505076"]
[WhiteElo "1981"]
[BlackElo "2172"]
[Result "0-1"]
[Round "04"]
[TimeControl "180+1"]
[Date "2022.11.30"]
[WhiteClock "0:00:01"]
[BlackClock "0:00:16"]

1. e4 {[%clk 0:03:00]}  c5 {[%clk 0:02:58]} 2. Nf3 {[%clk 0:03:00]}  Nc6 {[%clk 0:02:58]} 3. Bb5 {[%clk 0:02:59]}  g6 {[%clk 0:02:59]} 4. c3 {[%clk 0:02:59]}  Nf6 {[%clk 0:02:53]} 5. Qe2 {[%clk 0:02:57]}  Bg7 {[%clk 0:02:48]} 6. O-O {[%clk 0:02:56]}  O-O {[%clk 0:02:48]} 7. h3 {[%clk 0:02:54]}  Ne8 {[%clk 0:02:40]} 8. Bxc6 {[%clk 0:02:33]}  dxc6 {[%clk 0:02:40]} 9. d4 {[%clk 0:02:32]}  cxd4 {[%clk 0:02:29]} 10. cxd4 {[%clk 0:02:33]}  Nc7 {[%clk 0:02:08]} 11. Rd1 {[%clk 0:02:28]}  Ne6 {[%clk 0:01:59]} 12. Be3 {[%clk 0:02:12]}  Qa5 {[%clk 0:01:57]} 13. Nc3 {[%clk 0:02:11]}  Rd8 {[%clk 0:01:56]} 14. a3 {[%clk 0:01:59]}  Qh5 {[%clk 0:01:39]} 15. e5 {[%clk 0:01:46]}  Nc7 {[%clk 0:01:35]} 16. Ne4 {[%clk 0:01:44]}  Qf5 {[%clk 0:01:24]} 17. Ng3 {[%clk 0:01:44]}  Qe6 {[%clk 0:01:21]} 18. Ng5 {[%clk 0:01:40]}  Qb3 {[%clk 0:01:11]} 19. Rd3 {[%clk 0:01:39]}  Qb5 {[%clk 0:01:10]} 20. a4 {[%clk 0:01:38]}  Qa6 {[%clk 0:01:08]} 21. Raa3 {[%clk 0:01:17]}  Ne6 {[%clk 0:01:03]} 22. N3e4 {[%clk 0:01:07]}  Nxg5 {[%clk 0:01:01]} 23. Bxg5 {[%clk 0:00:56]}  Bf5 {[%clk 0:00:34]} 24. Bxe7 {[%clk 0:00:56]}  Rxd4 {[%clk 0:00:31]} 25. f3 {[%clk 0:00:39]}  Bxe4 {[%clk 0:00:25]} 26. fxe4 {[%clk 0:00:37]}  Bxe5 {[%clk 0:00:25]} 27. Qf3 {[%clk 0:00:31]}  Rxd3 {[%clk 0:00:23]} 28. Rxd3 {[%clk 0:00:30]}  Re8 {[%clk 0:00:19]} 29. Rd7 {[%clk 0:00:25]}  Qxa4 {[%clk 0:00:16]} 30. Ba3 {[%clk 0:00:14]}  Qc4 {[%clk 0:00:13]} 31. Rxb7 {[%clk 0:00:12]}  a5 {[%clk 0:00:09]} 32. Qb3 {[%clk 0:00:10]}  Qxb3 {[%clk 0:00:08]} 33. Rxb3 {[%clk 0:00:10]}  Bd4+ {[%clk 0:00:08]} 34. Kf1 {[%clk 0:00:09]}  Rxe4 {[%clk 0:00:09]} 35. Rb8+ {[%clk 0:00:08]}  Kg7 {[%clk 0:00:09]} 36. Bf8+ {[%clk 0:00:08]}  Kf6 {[%clk 0:00:10]} 37. Rb7 {[%clk 0:00:04]}  Re6 {[%clk 0:00:08]} 38. Bh6 {[%clk 0:00:02]}  g5 {[%clk 0:00:08]} 39. Bf8 {[%clk 0:00:02]}  Kg6 {[%clk 0:00:09]} 40. Ba3 {[%clk 0:00:03]}  h5 {[%clk 0:00:09]} 41. Rc7 {[%clk 0:00:02]}  Kf5 {[%clk 0:00:09]} 42. Rxf7+ {[%clk 0:00:02]}  Rf6 {[%clk 0:00:09]} 43. Rh7 {[%clk 0:00:02]}  Ke4+ {[%clk 0:00:09]} 44. Ke2 {[%clk 0:00:03]}  h4 {[%clk 0:00:10]} 45. Re7+ {[%clk 0:00:02]}  Kd5 {[%clk 0:00:10]} 46. Kd3 {[%clk 0:00:02]}  c5 {[%clk 0:00:09]} 47. Rd7+ {[%clk 0:00:02]}  Kc6 {[%clk 0:00:10]} 48. Re7 {[%clk 0:00:01]}  Rf2 {[%clk 0:00:10]} 49. Ke4 {[%clk 0:00:01]}  Re2+ {[%clk 0:00:10]} 50. Kf5 {[%clk 0:00:01]}  Rxe7 {[%clk 0:00:11]} 51. Kxg5 {[%clk 0:00:01]}  Rd7 {[%clk 0:00:10]} 52. Kxh4 {[%clk 0:00:02]}  Rb7 {[%clk 0:00:11]} 53. g4 {[%clk 0:00:02]}  Bxb2 {[%clk 0:00:12]} 54. Bxb2 {[%clk 0:00:01]}  Rxb2 {[%clk 0:00:12]} 55. g5 {[%clk 0:00:02]}  a4 {[%clk 0:00:13]} 56. g6 {[%clk 0:00:02]}  a3 {[%clk 0:00:14]} 57. Kg5 {[%clk 0:00:02]}  Rg2+ {[%clk 0:00:14]} 58. Kf6 {[%clk 0:00:02]}  a2 {[%clk 0:00:15]} 59. h4 {[%clk 0:00:02]}  a1=Q+ {[%clk 0:00:16]} 60. Kf7 {[%clk 0:00:01]}  Qb1 {[%clk 0:00:16]} 0-1


[Site "https://www.chess.com"]